[Event "Serbian League 2024"]
[Site "Bajina Basta"]
[Date "2024.10.03"]
[Round "7.25"]
[White "Tarhan, Adar"]
[Black "Krstulovic, Alex"]
[Result "1-0"]
[ECO "A48"]
[WhiteElo "2474"]
[BlackElo "2452"]
[Annotator "RC"]
[PlyCount "118"]
[EventDate "2024.09.26"]
[EventType "team-tourn"]
[EventCountry "SRB"]
[SourceTitle "playchess.com"]
[Source "ChessBase"]
[SourceQuality "1"]
[TimeControl "40/5400+30:1800+30"]

1. Nf3 {[%emt 0:00:03]} Nf6 {[%emt 0:01:41]} 2. d4 {[%emt 0:00:09]} g6 {[%emt 0:00:05]} 3. Bg5 {[%emt 0:00:53]} Bg7 {[%emt 0:00:21]} 4. Nbd2 {[%emt 0:03:02]} O-O {[%emt 0:02:45]} 5. e4 {[%emt 0:00:16]} d6 {[%emt 0:00:06]} 6. c3 {[%emt 0:00:26]} c5 {[%emt 0:00:08]} 7. dxc5 {[%emt 0:03:46]} dxc5 {[%emt 0:00:16]} 8. Bc4 {[%emt 0:01:15]} Nc6 {[%emt 0:02:20]} 9. Qe2 {[%emt 0:00:30]} h6 {[%emt 0:03:57]} 10. Bh4 {[%emt 0:02:33]} Nh5 {[%emt 0:00:50]} 11. Qe3 {[%emt 0:00:41]} b6 {[%emt 0:04:50]} 12. O-O-O {[%emt 0:08:37]} Qc7 {[%emt 0:16:49]} 13. Bd5 {[%emt 0:03:36]} Bd7 {[%emt 0:13:16]} 14. e5 {[%emt 0:05:43]} Be6 {[%emt 0:05:22]} 15. Bxe6 {[%emt 0:13:07]} fxe6 {[%emt 0:00:22]} 16. Bg3 {[%emt 0:00:10]} Rf5 {[%emt 0:08:45]} 17. Nh4 {[%emt 0:03:52]} Nxg3 {[%emt 0:01:06]} 18. Qxg3 {[%emt 0:00:05]} Qxe5 {[%emt 0:11:59]} 19. Nxf5 {[%emt 0:00:08]} Qxf5 {[%emt 0:00:05]} 20. Qf3 {[%emt 0:02:36]} Rc8 {[%emt 0:00:11]} 21. Rhe1 {[%emt 0:01:49]} Ne5 {[%emt 0:01:12]} 22. Qxf5 {[%emt 0:00:06]} exf5 {[%emt 0:00:38]} 23. Kc2 {[%emt 0:00:59]} g5 {[%emt 0:03:46]} 24. Nf3 {[%emt 0:00:47]} Nc6 {[%emt 0:04:09]} 25. Rd5 {[%emt 0:03:32]} e5 {[%emt 0:01:18]} 26. Nd2 {[%emt 0:01:28]} Rc7 {[%emt 0:01:37]} 27. Nc4 {[%emt 0:00:08]} Kf7 {[%emt 0:03:37]} 28. Red1 {[%emt 0:00:10]} Ke6 {[%emt 0:01:23]} 29. Rd6+ {[%emt 0:05:36]} Ke7 {[%emt 0:00:02]} 30. Ne3 {[%emt 0:00:07]} Nd4+ {[%emt 0:00:22]} 31. R6xd4 {[%emt 0:00:14]} exd4 {[%emt 0:00:21]} 32. Nd5+ {[%emt 0:00:04]} Kd6 {[%emt 0:00:15]} 33. Nxc7 {[%emt 0:00:04]} Kxc7 {[%emt 0:00:04]} 34. Re1 {[%emt 0:00:06]} Kd7 {[%emt 0:03:30]} 35. c4 {[%emt 0:01:31]} h5 {[%emt 0:03:17]} 36. Kd3 {[%emt 0:02:50]} Bf6 {[%emt 0:00:42]} 37. f3 {[%emt 0:01:04]} h4 {[%emt 0:01:12]} 38. g3 {[%emt 0:01:29]} h3 {[%emt 0:00:12]} 39. g4 {[%emt 0:00:03]} f4 {[%emt 0:00:12]} 40. Ke4 {[%emt 0:01:57]} Ke6 {[%emt 0:00:19]} 41. Rd1 {[%emt 0:30:03]} a5 {[%emt 0:34:30]} 42. Rd3 {[%emt 0:00:04]} Be7 {[%emt 0:00:00]} 43. Rb3 {[%emt 0:00:00]} Bd8 {[%emt 0:00:00]} 44. Rb5 {[%emt 0:00:00]} Kd6 {[%emt 0:00:00]} 45. a3 {[%emt 0:00:00]} Kc6 {[%emt 0:00:00]} 46. b4 {[%emt 0:00:00]} cxb4 {[%emt 0:00:00]} 47. axb4 {[%emt 0:00:00]} a4 {[%emt 0:00:00]} 48. Kd3 {[%emt 0:00:00]} Be7 {[%emt 0:00:00]} 49. Kc2 {[%emt 0:00:00]} a3 {[%emt 0:00:00]} 50. Kb3 {[%emt 0:00:00]} d3 {[%emt 0:00:00]} 51. Kxa3 {[%emt 0:00:00]} d2 {[%emt 0:00:00]} 52. Rd5 {[%emt 0:00:00]} b5 {[%emt 0:00:00]} 53. Rxd2 {[%emt 0:00:00]} bxc4 {[%emt 0:00:00]} 54. Ka4 {[%emt 0:00:00]} Bf6 {[%emt 0:00:00]} 55. Rd1 {[%emt 0:00:00]} Bb2 {[%emt 0:00:00]} 56. Rd8 {[%emt 0:00:00]} Be5 {[%emt 0:00:00]} 57. b5+ {[%emt 0:00:00]} Kc5 {[%emt 0:00:00]} 58. Rc8+ {[%emt 0:00:00]} Kd4 {[%emt 0:00:00]} 59. b6 {[%emt 0:00:00]} Kd5 {[%emt 0:00:00]} 1-0

[Event "Serbian League 2024"]
[Site "Bajina Basta"]
[Date "2024.10.03"]
[Round "7.26"]
[White "Sedlak, Nikola"]
[Black "Celik, Hasan Huseyin"]
[Result "1-0"]
[ECO "D02"]
[WhiteElo "2401"]
[BlackElo "2425"]
[Annotator "RC"]
[PlyCount "51"]
[EventDate "2024.09.26"]
[EventType "team-tourn"]
[EventCountry "SRB"]
[SourceTitle "playchess.com"]
[Source "ChessBase"]
[SourceQuality "1"]
[TimeControl "40/5400+30:1800+30"]

1. d4 {[%emt 0:01:10]} Nf6 {[%emt 0:00:28]} 2. Nf3 {[%emt 0:00:16]} e6 {[%emt 0:00:59]} 3. Bf4 {[%emt 0:00:29]} c5 {[%emt 0:00:54]} 4. e3 {[%emt 0:00:35]} Nc6 {[%emt 0:00:40]} 5. Nbd2 {[%emt 0:00:30]} d5 {[%emt 0:00:34]} 6. c3 {[%emt 0:00:22]} Nh5 {[%emt 0:01:20]} 7. Bg5 {[%emt 0:01:26]} f6 {[%emt 0:00:14]} 8. Bh4 {[%emt 0:00:14]} cxd4 {[%emt 0:00:14]} 9. cxd4 {[%emt 0:01:14]} g6 {[%emt 0:01:11]} 10. Rc1 {[%emt 0:04:05]} Be7 {[%emt 0:01:26]} 11. Bb5 {[%emt 0:07:27]} Bd7 {[%emt 0:06:51]} 12. O-O {[%emt 0:01:14]} Qb6 {[%emt 0:14:19]} 13. Ba4 {[%emt 0:04:23]} Qa6 {[%emt 0:09:10]} 14. Re1 {[%emt 0:09:48]} Nb4 {[%emt 0:12:48]} 15. Bxd7+ {[%emt 0:02:59]} Kxd7 {[%emt 0:00:52]} 16. e4 {[%emt 0:12:29]} Nd3 {[%emt 0:04:22]} 17. exd5 {[%emt 0:03:50]} Nxe1 {[%emt 0:02:19]} 18. dxe6+ {[%emt 0:00:21]} Ke8 {[%emt 0:04:26]} 19. Qxe1 {[%emt 0:02:23]} Nf4 {[%emt 0:01:39]} 20. Rc7 {[%emt 0:04:01]} Qxe6 {[%emt 0:12:14]} 21. Ne4 {[%emt 0:01:04]} Kf8 {[%emt 0:01:12]} 22. Rxe7 {[%emt 0:00:34]} Qg4 {[%emt 0:02:23]} 23. Bg3 {[%emt 0:04:54]} Nd3 {[%emt 0:05:35]} 24. Bd6 {[%emt 0:02:01]} Nxe1 {[%emt 0:02:36]} 25. Rd7+ {[%emt 0:00:08]} Ke8 {[%emt 0:00:05]} 26. Nxf6# {[%emt 0:00:06]} 1-0

[Event "Serbian League 2024"]
[Site "Bajina Basta"]
[Date "2024.10.03"]
[Round "7.27"]
[White "Kovacevic, Aleksandar"]
[Black "Stojanovic, Dalibor"]
[Result "1/2-1/2"]
[ECO "C68"]
[WhiteElo "2479"]
[BlackElo "2448"]
[Annotator "TA"]
[PlyCount "60"]
[EventDate "2024.09.26"]
[EventType "team-tourn"]
[EventCountry "SRB"]
[SourceTitle "playchess.com"]
[Source "ChessBase"]
[SourceQuality "1"]
[TimeControl "40/5400+30:1800+30"]

{[%evp 15,60,-8,4,0,0,0,0,0,16,10,8,11,34,37,41,38,43,38,42,32,43,19,31,19,19,19,34,34,34,12,12,12,24,12,53,29,30,26,21,18,44,45,44,29,31,28,29]} 1. e4 {[%emt 0:00:20]} e5 {[%emt 0:00:09]} 2. Nf3 {[%emt 0:00:14]} Nc6 {[%emt 0:00:08]} 3. Bb5 {[%emt 0:00:20]} a6 {[%emt 0:00:45]} 4. Bxc6 {[%emt 0:00:40]} dxc6 {[%emt 0:00:05]} 5. O-O {[%emt 0:00:05]} Bg4 {[%emt 0:01:56]} 6. h3 {[%emt 0:00:09]} h5 {[%emt 0:00:30]} 7. d3 {[%emt 0:00:17]} Qf6 {[%emt 0:01:09]} 8. Nbd2 {[%emt 0:00:07] [#]} g5 $1 {[%emt 0:00:44]} 9. hxg4 {[%emt 0:04:40]} (9. b3 Qg7) 9... hxg4 {[%emt 0:00:38][%cal Of6h6] ( -> ...Qh6!)} 10. Re1 $1 {[%emt 0:00:04]} gxf3 {[%emt 0:08:41]} 11. Qxf3 {[%emt 0:00:53] The position is equal.} Qxf3 {[%emt 0:04:14]} 12. Nxf3 {[%emt 0:00:09]} f6 {[%emt 0:00:03]} 13. Be3 {[%emt 0:01:56]} c5 {[%emt 0:03:21]} 14. g3 {[%emt 0:02:49]} Bd6 {[%emt 0:03:49]} 15. Kg2 {[%emt 0:07:45]} Ne7 {[%emt 0:01:26]} 16. Rh1 {[%emt 0:02:11]} Kf7 {[%emt 0:00:11]} 17. c3 {[%emt 0:04:25]} Nc6 {[%emt 0:04:34]} 18. Rxh8 {[%emt 0:07:29]} Rxh8 {[%emt 0:00:18]} 19. Nd2 {[%emt 0:04:06]} Be7 {[%emt 0:09:46]} 20. Kf3 {[%emt 0:03:40]} Ke6 {[%emt 0:04:05]} 21. Nb3 {[%emt 0:02:03]} b6 {[%emt 0:03:50]} 22. a4 {[%emt 0:00:54]} a5 {[%emt 0:04:31]} 23. Rc1 {[%emt 0:02:13]} Bd6 {[%emt 0:02:02]} 24. Nd2 {[%emt 0:02:15]} Kd7 {[%emt 0:06:50]} 25. Nc4 {[%emt 0:00:53]} Ke6 {[%emt 0:00:27]} 26. Bd2 {[%emt 0:01:00]} Rh2 {[%emt 0:04:33]} 27. Ne3 {[%emt 0:00:31]} Ne7 {[%emt 0:00:03]} 28. Ng4 {[%emt 0:00:43]} Rh8 {[%emt 0:00:06]} 29. Be3 {[%emt 0:05:45]} Nc6 {[%emt 0:00:31]} 30. Kg2 {[%emt 0:01:30]} Rh7 {[%emt 0:02:04] Weighted Error Value: White=0.05 (flawless) /Black=0.08 (flawless) .  Inaccurate:     	---       	Black=2      OK:         	White=9     	Black=8      Best:        	---       	Black=1      Strong:       	White=1     	---} 1/2-1/2

[Event "Serbian League 2024"]
[Site "Bajina Basta"]
[Date "2024.10.03"]
[Round "7.28"]
[White "Alimpic, Aleksa"]
[Black "Brenjo, Slavisa"]
[Result "1/2-1/2"]
[ECO "D30"]
[WhiteElo "2253"]
[BlackElo "2376"]
[Annotator "TA"]
[PlyCount "42"]
[EventDate "2024.09.26"]
[EventType "team-tourn"]
[EventCountry "SRB"]
[SourceTitle "playchess.com"]
[Source "ChessBase"]
[SourceQuality "1"]
[TimeControl "40/5400+30:1800+30"]

{[%evp 16,42,34,25,41,37,68,38,35,13,25,25,20,25,35,34,25,29,35,10,76,69,78,71,72,68,106,66,87]} 1. d4 {[%emt 0:00:09]} d5 {[%emt 0:02:17]} 2. c4 {[%emt 0:00:07]} e6 {[%emt 0:00:14]} 3. Nf3 {[%emt 0:00:06]} c5 {[%emt 0:03:48]} 4. cxd5 {[%emt 0:00:05]} exd5 {[%emt 0:00:29]} 5. g3 {[%emt 0:00:05]} Nc6 {[%emt 0:00:20]} 6. Bg2 {[%emt 0:00:12]} Nf6 {[%emt 0:01:16][%cal Bg8f6,Bf6e4,Be4d2][%mdl 32]} 7. O-O {[%emt 0:00:15]} Be7 {[%emt 0:01:01][%cal Bf8e7,Be7c5,Bc5b6][%mdl 32]} 8. dxc5 {[%emt 0:00:10]} Bxc5 {[%emt 0:00:41]} 9. a3 {[%emt 0:00:07]} Ne4 {[%emt 0:04:09]} 10. Nfd2 {[%emt 0:00:10]} Nxd2 {[%emt 0:14:12]} 11. Nxd2 {[%emt 0:02:48]} Bb6 {[%emt 0:09:25]} 12. Nf3 {[%emt 0:06:32]} O-O {[%emt 0:58:38]} 13. b4 {[%emt 0:02:07]} Re8 {[%emt 0:00:00]} 14. Bb2 {[%emt 0:02:46]} Bg4 {[%emt 0:00:00]} 15. Qd2 {[%emt 0:08:08]} Qe7 {[%emt 0:00:00]} 16. h3 {[%emt 0:10:39]} Bxf3 {[%emt 0:00:00]} 17. Bxf3 {[%emt 0:11:10]} (17. exf3 {with more complications.} Qe2 18. Rad1 a5 19. bxa5 Rxa5 20. f4) 17... Ne5 {[%emt 0:00:00]} (17... Rad8 $11) 18. Bxe5 $16 {[%emt 0:07:28]} (18. Qxd5 Nxf3+ 19. Qxf3 (19. exf3 Rad8 $15) 19... Qxe2 20. Qxe2 Rxe2 $17) 18... Qxe5 {[%emt 0:00:00]} 19. Kg2 {[%emt 0:00:10]} (19. Qxd5 Qxg3+ 20. Bg2 Rxe2 $19) 19... Rad8 {[%emt 0:00:00]} 20. Rac1 {[%emt 0:05:54]} Re6 {[%emt 0:00:00]} 21. Rc3 {[%emt 0:03:49]} Rg6 {[%emt 0:00:00] Weighted Error Value: White=0.07 (flawless) /Black=0.17 (very precise) .  Mistake:       	---       	Black=1      Inaccurate:     	White=2     	Black=2      OK:         	White=5     	Black=1      Best:        	---       	Black=1} 1/2-1/2

[Event "Serbian League 2024"]
[Site "Bajina Basta"]
[Date "2024.10.03"]
[Round "7.29"]
[White "Omorjan, Dejan"]
[Black "Krstic, Petar"]
[Result "1-0"]
[ECO "E33"]
[WhiteElo "2299"]
[BlackElo "2280"]
[Annotator "RC"]
[PlyCount "93"]
[EventDate "2024.09.26"]
[EventType "team-tourn"]
[EventCountry "SRB"]
[SourceTitle "playchess.com"]
[Source "ChessBase"]
[SourceQuality "1"]
[TimeControl "40/5400+30:1800+30"]

1. d4 {[%emt 0:00:01]} Nf6 {[%emt 0:00:09]} 2. c4 {[%emt 0:00:14]} e6 {[%emt 0:00:11]} 3. Nc3 {[%emt 0:00:05]} Bb4 {[%emt 0:00:08]} 4. Qc2 {[%emt 0:00:04]} Nc6 {[%emt 0:01:01]} 5. Nf3 {[%emt 0:00:21]} d6 {[%emt 0:03:22]} 6. Bd2 {[%emt 0:00:12]} O-O {[%emt 0:00:26]} 7. a3 {[%emt 0:00:06]} Bxc3 {[%emt 0:00:38]} 8. Bxc3 {[%emt 0:00:02]} a5 {[%emt 0:00:53]} 9. g3 {[%emt 0:05:01]} Re8 {[%emt 0:06:29]} 10. Bg2 {[%emt 0:04:17]} a4 {[%emt 0:04:28]} 11. O-O {[%emt 0:03:17]} e5 {[%emt 0:04:10]} 12. d5 {[%emt 0:03:52]} Nb8 {[%emt 0:03:24]} 13. Nd2 {[%emt 0:04:40]} Nbd7 {[%emt 0:06:46]} 14. e4 {[%emt 0:02:30]} c6 {[%emt 0:01:31]} 15. Kh1 {[%emt 0:10:46]} Qb6 {[%emt 0:03:12]} 16. Rae1 {[%emt 0:04:09]} Ng4 {[%emt 0:09:18]} 17. Re2 {[%emt 0:05:51]} Nc5 {[%emt 0:08:50]} 18. f3 {[%emt 0:04:40]} Nf6 {[%emt 0:01:38]} 19. Rd1 {[%emt 0:03:51]} cxd5 {[%emt 0:02:39]} 20. cxd5 {[%emt 0:03:41]} Qa6 {[%emt 0:01:36]} 21. Re3 {[%emt 0:03:03]} Bd7 {[%emt 0:02:18]} 22. Bf1 {[%emt 0:01:26]} Qa7 {[%emt 0:12:23]} 23. Nc4 {[%emt 0:03:53]} Nb3 {[%emt 0:14:48]} 24. Ree1 {[%emt 0:08:02]} Qb8 {[%emt 0:02:05]} 25. Nb6 {[%emt 0:03:14]} Ra7 {[%emt 0:00:06]} 26. Bb4 {[%emt 0:07:22]} Rd8 {[%emt 0:04:15]} 27. Qf2 {[%emt 0:05:29]} Be8 {[%emt 0:03:33]} 28. Kg2 {[%emt 0:03:42]} h5 {[%emt 0:00:27]} 29. h4 {[%emt 0:01:27]} Qc7 {[%emt 0:02:08]} 30. Nc4 {[%emt 0:03:54]} Ra6 {[%emt 0:01:29]} 31. Nd2 {[%emt 0:00:31]} Nxd2 {[%emt 0:00:50]} 32. Rxd2 {[%emt 0:03:16]} Raa8 {[%emt 0:00:40]} 33. Rc2 {[%emt 0:00:07]} Qb8 {[%emt 0:00:37]} 34. Qb6 {[%emt 0:00:56]} Qa7 {[%emt 0:00:07]} 35. Qxa7 {[%emt 0:00:41]} Rxa7 {[%emt 0:00:05]} 36. Rc7 {[%emt 0:00:24]} Nh7 {[%emt 0:01:15]} 37. Rec1 {[%emt 0:00:41]} f5 {[%emt 0:00:05]} 38. Re7 {[%emt 0:01:58]} fxe4 {[%emt 0:00:47]} 39. fxe4 {[%emt 0:00:58]} Bg6 {[%emt 0:00:14]} 40. Bd3 {[%emt 0:00:51]} Nf6 {[%emt 0:00:51]} 41. Rcc7 {[%emt 0:03:15]} Ne8 {[%emt 0:04:52]} 42. Rxb7 {[%emt 0:04:15]} Rxb7 {[%emt 0:00:08]} 43. Rxb7 {[%emt 0:00:04]} Nf6 {[%emt 0:00:05]} 44. Kf3 {[%emt 0:01:24]} Nxd5 {[%emt 0:09:30]} 45. Bc4 {[%emt 0:00:58]} Rf8+ {[%emt 0:01:18]} 46. Ke2 {[%emt 0:00:06]} Bxe4 {[%emt 0:00:25]} 47. Rb5 {[%emt 0:00:29]} 1-0

[Event "Serbian League 2024"]
[Site "Bajina Basta"]
[Date "2024.10.03"]
[Round "7.30"]
[White "Todorovic, Jovan"]
[Black "Gagic, Milan A"]
[Result "1/2-1/2"]
[ECO "B01"]
[WhiteElo "2332"]
[BlackElo "2284"]
[Annotator "RC"]
[PlyCount "43"]
[EventDate "2024.09.26"]
[EventType "team-tourn"]
[EventCountry "SRB"]
[SourceTitle "playchess.com"]
[Source "ChessBase"]
[SourceQuality "1"]
[TimeControl "40/5400+30:1800+30"]

1. e4 {[%emt 0:00:58]} d5 {[%emt 0:00:13]} 2. exd5 {[%emt 0:00:21]} Nf6 {[%emt 0:00:15]} 3. Bb5+ {[%emt 0:01:32]} Nbd7 {[%emt 0:00:56]} 4. Nf3 {[%emt 0:01:27]} Nxd5 {[%emt 0:02:20]} 5. d4 {[%emt 0:00:40]} g6 {[%emt 0:03:56]} 6. O-O {[%emt 0:03:43]} Bg7 {[%emt 0:00:15]} 7. Re1 {[%emt 0:04:57]} O-O {[%emt 0:00:35]} 8. Bf1 {[%emt 0:00:52]} c5 {[%emt 0:07:02]} 9. c4 {[%emt 0:05:14]} N5f6 {[%emt 0:03:06]} 10. d5 {[%emt 0:06:37]} b5 {[%emt 0:01:14]} 11. cxb5 {[%emt 0:00:53]} Nb6 {[%emt 0:02:12]} 12. Ne5 {[%emt 0:15:58]} Nbxd5 {[%emt 0:10:25]} 13. Nd2 {[%emt 0:07:37]} a6 {[%emt 0:08:02]} 14. bxa6 {[%emt 0:02:21]} Bxa6 {[%emt 0:01:47]} 15. Ndc4 {[%emt 0:07:40]} Qc7 {[%emt 0:01:52]} 16. Bd2 {[%emt 0:01:35]} Bb7 {[%emt 0:05:05]} 17. a3 {[%emt 0:01:47]} Nd7 {[%emt 0:10:42]} 18. Nxd7 {[%emt 0:03:01]} Qxd7 {[%emt 0:00:21]} 19. Rc1 {[%emt 0:04:12]} Qc7 {[%emt 0:07:32]} 20. Qc2 {[%emt 0:04:24]} Rac8 {[%emt 0:04:56]} 21. Qe4 {[%emt 0:07:54]} Bd4 {[%emt 0:05:29]} 22. Qh4 {[%emt 0:02:28]} 1/2-1/2

[Event "Serbian League 2024"]
[Site "Bajina Basta"]
[Date "2024.10.03"]
[Round "7.31"]
[White "Hovhannisyan, Robert"]
[Black "Ivic, Velimir"]
[Result "1/2-1/2"]
[ECO "B47"]
[WhiteElo "2619"]
[BlackElo "2599"]
[Annotator "TA"]
[PlyCount "100"]
[EventDate "2024.09.26"]
[EventType "team-tourn"]
[EventCountry "SRB"]
[SourceTitle "playchess.com"]
[Source "ChessBase"]
[SourceQuality "1"]
[TimeControl "40/5400+30:1800+30"]

{[%evp 11,100,26,16,0,0,0,0,0,0,0,0,-13,0,-7,0,0,0,0,0,-13,0,0,0,-8,0,-35,-12,-19,-25,-15,-24,-21,-27,-29,-22,-56,-33,-25,-19,-26,-25,-27,-22,-18,-10,-9,-7,-25,-19,-33,-45,-51,-24,-18,-17,-19,0,0,0,0,0,-8,-8,-8,-8,-8,0,0,0,0,0,-8,0,-8,-8,-8,-8,-14,-14,-14,-14,-14,-14,-14,0,0,0,0,0,0,0]} 1. e4 {[%emt 0:00:04]} c5 {[%emt 0:00:48]} 2. Nf3 {[%emt 0:00:09]} e6 {[%emt 0:00:24]} 3. d4 {[%emt 0:00:12]} cxd4 {[%emt 0:00:06]} 4. Nxd4 {[%emt 0:00:03]} Nc6 {[%emt 0:00:15]} 5. Nc3 {[%emt 0:00:21]} Qc7 {[%emt 0:00:44]} 6. Be2 {[%emt 0:00:46]} Nf6 {[%emt 0:01:15]} 7. f4 {[%emt 0:00:45]} Nxd4 {[%emt 0:13:03]} 8. Qxd4 {[%emt 0:00:21]} Bc5 {[%emt 0:00:06]} 9. Qd3 {[%emt 0:00:36]} d5 {[%emt 0:14:52]} 10. e5 {[%emt 0:00:23]} Ne4 {[%emt 0:00:15]} 11. Be3 {[%emt 0:01:16] Prevents Nf2} Bxe3 {[%emt 0:08:43]} 12. Qxe3 {[%emt 0:00:15]} (12. Nxe4 {with more complications.} Qb6 13. Nd6+ Kf8 14. Rd1) 12... Nxc3 {[%emt 0:00:25]} 13. Qxc3 {[%emt 0:00:15]} Qxc3+ {[%emt 0:00:29]} 14. bxc3 {[%emt 0:00:04]} Bd7 {[%emt 0:03:23]} 15. Kd2 {[%emt 0:00:33]} Ke7 {[%emt 0:02:08]} 16. Rhb1 {[%emt 0:02:39]} Rab8 {[%emt 0:07:51]} 17. Rb4 {[%emt 0:11:30]} Rhc8 {[%emt 0:01:36]} 18. Rab1 {[%emt 0:03:10]} b6 {[%emt 0:01:06]} 19. R1b3 {[%emt 0:23:07]} Rc5 {[%emt 0:09:30]} 20. Ra3 {[%emt 0:00:16]} a5 {[%emt 0:00:13]} 21. Rb1 {[%emt 0:02:57]} Kd8 {[%emt 0:01:23]} 22. Rab3 {[%emt 0:04:12]} Kc7 {[%emt 0:00:18]} 23. Bd3 {[%emt 0:05:51][%cal Og2g4]} Ba4 {[%emt 0:01:15]} 24. R3b2 {[%emt 0:00:23]} b5 {[%emt 0:08:20]} 25. f5 {[%emt 0:06:31]} exf5 {[%emt 0:10:22]} 26. Bxf5 {[%emt 0:01:38]} Kd8 {[%emt 0:01:18]} 27. Rf1 {[%emt 0:13:35][%cal Of1f4]} Ke7 {[%emt 0:00:58]} 28. Rf4 $1 {[%emt 0:03:29]} Rc4 {[%emt 0:00:56]} 29. g3 {[%emt 0:00:44]} ({Of course not} 29. Rxc4 dxc4 30. Ke3 Rd8 $17) 29... Rb6 {[%emt 0:03:29]} 30. Rb1 {[%emt 0:09:20]} Rh6 {[%emt 0:00:38]} 31. Rf2 {[%emt 0:03:14]} Rhc6 {[%emt 0:01:35]} 32. Rbf1 {[%emt 0:00:42]} Rxc3 {[%emt 0:03:49] Threatening ...h6. The position is equal.} 33. Bxh7 {[%emt 0:00:05]} Ke6 {[%emt 0:02:11] [#] Threatens to win with ...g6.} 34. Rxf7 {[%emt 0:06:40]} Bxc2 {[%emt 0:00:22]} ({Don't play} 34... Kxe5 $6 35. Re1+ Kd6 36. Rxg7 $16) 35. Rxg7 {[%emt 0:00:51] And now Rf6+ would win.} Bxh7 {[%emt 0:02:55]} 36. Rf6+ {[%emt 0:00:27]} Kxe5 {[%emt 0:00:01] ( -> ...Rc2+)} 37. Rxc6 {[%emt 0:00:05]} Rxc6 {[%emt 0:00:08]} 38. Rxh7 $11 {[%emt 0:00:02][%mdl 4096] Endgame. KR-KR} Rc4 {[%emt 0:01:16] ...Ra4 would now be deadly.} 39. Rb7 {[%emt 0:01:24]} Ra4 {[%emt 0:00:32]} 40. Rxb5 {[%emt 0:00:11]} Rxa2+ {[%emt 0:00:04]} 41. Kd3 {[%emt 0:02:26]} a4 {[%emt 0:00:45]} (41... Rxh2 {simplifies} 42. Rxa5 Rg2 43. Ra8 Rxg3+ 44. Kd2 Rh3) 42. Ra5 {[%emt 0:03:36]} a3 {[%emt 0:16:07]} 43. h4 {[%emt 0:02:32]} Rg2 {[%emt 0:09:57]} 44. h5 {[%emt 0:01:28]} (44. Kc3 {simplifies} Rxg3+ 45. Kb4 Rg4+ 46. Kxa3 Rxh4 47. Kb3) 44... Rxg3+ {[%emt 0:00:26]} 45. Kc2 {[%emt 0:00:40]} Ke4 {[%emt 0:02:13] [#] Hoping for ...d4.} (45... Rh3 {simplifies} 46. Ra4 Rh2+ 47. Kb1 Rxh5 48. Rxa3 Rh2) 46. h6 {[%emt 0:00:39]} d4 {[%emt 0:02:47] aiming for ...Rh3.} 47. h7 {[%emt 0:00:25]} d3+ {[%emt 0:00:46]} 48. Kc3 {[%emt 0:00:13]} Rh3 {[%emt 0:00:25]} 49. Rxa3 {[%emt 0:00:10]} Rxh7 {[%emt 0:00:39] Strongly threatening ...Ke3.} 50. Ra8 $1 {[%emt 0:00:10]} Rc7+ {[%emt 0:02:23] Weighted Error Value: White=0.04 (flawless) /Black=0.03 (flawless) .  Inaccurate:     	White=2     	Black=1      OK:         	White=20    	Black=19     Best:        	White=2     	Black=2      Strong:       	White=2     	---} 1/2-1/2

[Event "Serbian League 2024"]
[Site "Bajina Basta"]
[Date "2024.10.03"]
[Round "7.34"]
[White "Perunovic, Miodrag"]
[Black "Tadic, Stefan"]
[Result "1/2-1/2"]
[ECO "D36"]
[WhiteElo "2347"]
[BlackElo "2440"]
[Annotator "TA"]
[PlyCount "51"]
[EventDate "2024.09.26"]
[EventType "team-tourn"]
[EventCountry "SRB"]
[SourceTitle "playchess.com"]
[Source "ChessBase"]
[SourceQuality "1"]
[TimeControl "40/5400+30:1800+30"]

{[%evp 18,51,14,14,16,10,22,0,0,0,0,0,0,0,0,0,0,0,0,0,0,-10,-15,-28,-12,-22,-12,-8,-13,-21,-11,-33,-21,-36,-37,-85]} 1. d4 {[%emt 0:02:23]} d5 {[%emt 0:00:11]} 2. c4 {[%emt 0:00:20]} e6 {[%emt 0:00:05]} 3. Nc3 {[%emt 0:00:13]} Nf6 {[%emt 0:00:06]} 4. cxd5 {[%emt 0:00:05]} exd5 {[%emt 0:00:05]} 5. Bg5 {[%emt 0:00:08]} c6 {[%emt 0:00:17]} 6. e3 {[%emt 0:00:07]} h6 {[%emt 0:00:13]} 7. Bh4 {[%emt 0:01:07]} Be7 {[%emt 0:00:20]} 8. Bd3 {[%emt 0:00:16]} Ne4 {[%emt 0:01:16]} 9. Bxe7 {[%emt 0:00:57]} Qxe7 {[%emt 0:00:06]} 10. Qc2 {[%emt 0:09:05][%cal Oc3d5] [#] Nxd5! would now be deadly.} Nd6 {[%emt 0:06:16]} 11. Nf3 {[%emt 0:02:02]} Nd7 {[%emt 0:09:01][%cal Bb8d7,Bd7f6,Bf6g4][%mdl 32]} 12. O-O-O {[%emt 0:04:59]} Nf6 {[%emt 0:05:21] The position is equal.} 13. Ne5 {[%emt 0:02:49]} Ng4 {[%emt 0:02:44]} 14. Nf3 {[%emt 0:04:24]} Nf6 {[%emt 0:06:59]} 15. h3 {[%emt 0:00:04]} Nfe4 {[%emt 0:01:25]} 16. Ne5 {[%emt 0:07:13]} Nxc3 {[%emt 0:08:17]} 17. Qxc3 {[%emt 0:00:01][%cal Oe5c6]} Bf5 {[%emt 0:01:08]} 18. Bxf5 {[%emt 0:09:40]} ({But not} 18. Nxc6 $2 Qf6 19. Bxf5 Qxf5 $19) 18... Nxf5 {[%emt 0:00:51]} 19. Nxc6 {[%emt 0:16:37]} Qe6 {[%emt 0:02:55][%cal Oe8g8] [#] And now ...0-0! would win.} 20. e4 $1 {[%emt 0:00:03]} dxe4 {[%emt 0:11:11]} 21. d5 {[%emt 0:00:01]} Qf6 {[%emt 0:04:46]} 22. Qxf6 {[%emt 0:03:16]} gxf6 {[%emt 0:00:06]} 23. Nd4 {[%emt 0:01:14]} Nd6 {[%emt 0:00:14]} 24. g4 {[%emt 0:00:25]} h5 {[%emt 0:00:45]} 25. Rhe1 {[%emt 0:01:51]} Kd7 {[%emt 0:02:06]} 26. f3 {[%emt 0:07:05] Weighted Error Value: White=0.05 (flawless) /Black=0.01 (flawless) .  Mistake:       	White=1     	---        OK:         	White=6     	Black=10     Strong:       	White=1     	---} (26. Nf5 $15 {should be considered.}) 1/2-1/2